bitfinex/quotes_SOLUSD_20260211
["timestamp","ask_amount","ask_price","bid_price","bid_amount"]
[1770791224035,4.83987746,81.712,81.69,12.38284052]
[1770791224240,4.83987746,81.712,81.691,12.24125056]
[1770791224637,4.83987746,81.712,81.688,39.16]
[1770791224843,0.94815834,81.709,81.637,5.13032502]
[1770791225022,0.94815834,81.709,81.675,12.24362373]
[1770791225218,0.94815834,81.709,81.643,48.99378382]
[1770791225219,0.94815834,81.709,81.691,12.24125056]
[1770791225418,4.83987746,81.712,81.691,12.24125056]
[1770791226327,4.83987746,81.712,81.683,30.60597256]
[1770791226534,0.94815834,81.711,81.681,51.40274923]
[1770791226951,0.94815834,81.71,81.681,51.40274923]
[1770791227162,0.94815834,81.699,81.658,12.24614512]
[1770791227444,0.94815834,81.679,81.65,12.34914385]
[1770791227627,0.94815834,81.699,81.65,12.34914385]
[1770791227828,12.34914385,81.69,81.65,12.34914385]
[1770791228042,0.94815834,81.699,81.65,12.34914385]
[1770791228351,0.94815834,81.697,81.66,12.34914385]
[1770791228562,0.94815834,81.697,81.67,12.34914385]
[1770791228855,0.94815834,81.697,81.66,12.34914385]
[1770791229049,0.94815834,81.697,81.657,39.16]
[1770791229450,0.94815834,81.689,81.657,39.16]
[1770791229958,0.94815834,81.689,81.66,12.34914385]
[1770791230332,0.94815834,81.688,81.656,12.2464603]
[1770791231234,0.94815834,81.688,81.66,12.24574884]
[1770791232129,0.94815834,81.679,81.654,39.18]
[1770791232345,0.94815834,81.659,81.62,12.34914385]
[1770791232660,0.94815834,81.659,81.61,51.52914385]
[1770791233731,12.34914385,81.64,81.6,12.34914385]
[1770791233927,12.34914385,81.64,81.575,49.03413601]
[1770791233928,0.94815834,81.639,81.592,39.18]
[1770791234334,0.94815834,81.637,81.593,39.18]
[1770791234547,12.34914385,81.64,81.6,12.34914385]
[1770791234548,0.94815834,81.629,81.6,12.34914385]
[1770791234950,0.94815834,81.638,81.6,12.34914385]
[1770791235549,0.94815834,81.638,81.62,12.34914385]
[1770791236039,12.34914385,81.66,81.621,0.91310217]
[1770791236345,30.61051018,81.672,81.622,12.25159883]
[1770791236552,12.34914385,81.66,81.622,12.25159883]
[1770791237063,12.34914385,81.65,81.622,12.25159883]
[1770791237248,12.34914385,81.66,81.622,12.25159883]
[1770791237850,12.34914385,81.66,81.622,13.164701]
[1770791238038,0.87589613,81.659,81.622,12.25159883]
[1770791238434,0.87589613,81.659,81.611,0.91310217]
[1770791238435,0.87589613,81.657,81.611,0.91310217]
[1770791238641,0.87589613,81.649,81.609,39.18]
[1770791238854,0.87589613,81.639,81.609,39.18]
[1770791239261,0.87589613,81.639,81.61,13.26224602]
[1770791239559,0.87589613,81.649,81.622,12.25145733]
[1770791239856,0.87589613,81.649,81.611,0.91310217]
[1770791240364,0.87589613,81.649,81.617,12.25228781]
[1770791240569,0.87589613,81.649,81.612,12.25310003]
[1770791241146,0.90217022,81.647,81.612,12.25310003]
[1770791242955,0.90217022,81.647,81.61,12.34914385]
[1770791242956,0.90217022,81.639,81.606,39.26]
[1770791243143,0.90217022,81.639,81.56,12.20542728]
[1770791243144,0.90217022,81.648,81.612,0.88933917]
[1770791243345,0.90217022,81.648,81.62,12.34914385]
[1770791243655,0.90217022,81.648,81.611,42.8863756]
[1770791243656,0.90217022,81.657,81.63,12.34914385]
[1770791244170,0.90217022,81.657,81.611,42.8863756]
[1770791244171,28.7,81.685,81.641,0.88933917]
[1770791244540,12.24229959,81.684,81.642,0.88556831]
[1770791244753,12.34914385,81.68,81.642,0.88556831]
[1770791245160,12.24229959,81.684,81.642,0.88556831]
[1770791245352,12.24229959,81.684,81.651,0.88556831]
[1770791245950,12.34914385,81.68,81.636,12.24948156]
[1770791246253,0.88591884,81.679,81.635,12.24962808]
[1770791246459,42.84804857,81.684,81.642,12.24859753]
[1770791246460,0.88591884,81.669,81.642,12.24859753]
[1770791246651,12.34914385,81.67,81.633,39.28]
[1770791246652,0.88591884,81.667,81.637,12.24933938]
[1770791247361,0.88591884,81.667,81.64,12.34914385]
[1770791247538,0.88591884,81.667,81.641,0.88556831]
[1770791248057,0.88591884,81.667,81.637,12.24933938]
[1770791248763,0.88591884,81.667,81.63,12.34914385]
[1770791248764,0.88591884,81.665,81.631,12.25024806]
[1770791249144,30.60608502,81.684,81.625,0.88556831]
[1770791249145,0.88591884,81.659,81.625,12.25109425]
[1770791249346,0.88591884,81.659,81.629,12.25051995]
[1770791249747,0.88591884,81.659,81.62,51.64914385]
[1770791249748,0.88591884,81.659,81.628,12.25065037]
[1770791250260,0.88591884,81.659,81.628,12.25065509]
[1770791250556,0.88591884,81.659,81.622,12.25148128]
[1770791250875,0.88591884,81.659,81.62,39.3]
[1770791250876,0.88591884,81.639,81.609,12.25349721]
[1770791251545,0.88591884,81.639,81.613,12.25293828]
[1770791251752,10.17472137,81.65,81.614,0.88556831]
[1770791252359,10.17472137,81.65,81.62,12.25184377]
[1770791252666,12.24604758,81.659,81.623,0.88556831]
[1770791253867,0.88591884,81.658,81.623,0.88556831]
[1770791254659,41.83129781,81.664,81.623,0.88556831]
[1770791254977,12.34914385,81.66,81.625,0.88556831]
[1770791255768,0.88591884,81.659,81.625,0.88556831]
[1770791257265,12.34914385,81.66,81.626,12.25099845]
[1770791257473,28.7,81.664,81.627,0.88556831]
[1770791257968,12.34914385,81.66,81.627,0.88556831]
[1770791258967,12.34914385,81.65,81.627,0.88556831]
[1770791259147,0.88591884,81.659,81.627,0.88556831]
[1770791259671,0.88591884,81.657,81.628,12.25069828]
[1770791260274,0.88591884,81.657,81.628,13.13626659]
[1770791260775,0.88591884,81.657,81.628,12.25069828]
[1770791260954,0.88591884,81.649,81.623,12.251365]
[1770791261156,0.88591884,81.649,81.626,12.25085217]
[1770791261363,0.88591884,81.659,81.629,0.88556831]
[1770791261564,0.88591884,81.658,81.629,0.88556831]
[1770791261757,0.88591884,81.656,81.621,13.13731724]
[1770791261957,0.88591884,81.656,81.622,0.88556831]
[1770791262472,12.34914385,81.65,81.622,0.88556831]
[1770791262675,0.88591884,81.656,81.622,0.88556831]
[1770791263855,0.88591884,81.649,81.616,12.25241704]
[1770791264066,12.34914385,81.65,81.615,0.88556831]
[1770791264265,13.23506269,81.65,81.615,0.88556831]
[1770791264471,0.88591884,81.649,81.615,0.88556831]
[1770791264676,0.88591884,81.649,81.623,12.25144873]
[1770791266266,0.88591884,81.647,81.616,12.2524995]
[1770791266471,12.34914385,81.64,81.615,0.88556831]
[1770791266967,0.88591884,81.647,81.617,0.88556831]
[1770791268181,28.78,81.668,81.621,0.88556831]
[1770791268182,12.34914385,81.66,81.621,0.88556831]
[1770791268479,12.24602103,81.66,81.623,0.88556831]
[1770791268676,25.48108372,81.66,81.623,0.88556831]
[1770791268862,0.88591884,81.659,81.623,0.88556831]
[1770791269868,0.88591884,81.649,81.623,0.88556831]
[1770791270175,0.88591884,81.649,81.624,13.22120617]
[1770791270478,0.88591884,81.649,81.625,0.96990754]
[1770791271681,12.24655546,81.656,81.625,0.96990754]
[1770791271858,12.24604758,81.659,81.625,0.96990754]
[1770791272254,12.24604758,81.659,81.627,0.96990754]
[1770791272579,0.98002229,81.658,81.627,0.96990754]
[1770791274674,0.98002229,81.658,81.628,12.25069828]
[1770791276280,0.98002229,81.656,81.628,12.25069828]
[1770791276662,0.98002229,81.656,81.628,0.96990754]
[1770791278165,12.24484328,81.668,81.631,0.96990754]
[1770791278666,13.22486557,81.668,81.631,0.96990754]
[1770791278872,12.34914385,81.66,81.626,0.96990754]
[1770791279187,0.98002229,81.649,81.626,0.96990754]
[1770791279377,0.98002229,81.649,81.628,12.25064692]
[1770791280285,0.98002229,81.639,81.614,12.25275265]
[1770791280464,0.98002229,81.639,81.61,0.96990754]
[1770791280465,0.98002229,81.646,81.619,0.96990754]
[1770791282375,0.98002229,81.646,81.62,12.25189904]
[1770791283678,0.98002229,81.646,81.621,0.96990754]
[1770791283874,12.24814746,81.645,81.621,0.96990754]
[1770791284189,0.98002229,81.644,81.619,12.25200077]
[1770791284389,0.98002229,81.668,81.621,0.96990754]
[1770791284690,0.98002229,81.649,81.621,0.96990754]
[1770791284873,0.98002229,81.649,81.614,12.25267073]
[1770791285073,42.85644315,81.668,81.613,0.96990754]
[1770791285074,0.98002229,81.639,81.613,0.96990754]
[1770791285590,0.98002229,81.637,81.606,12.25386256]
[1770791286487,0.98002229,81.637,81.61,12.25336498]
[1770791286687,0.98002229,81.637,81.61,13.22327252]
[1770791287094,0.98002229,81.637,81.599,0.96990754]
[1770791287095,4.61743454,81.63,81.599,0.96990754]
[1770791287271,0.98002229,81.637,81.607,0.96990754]
[1770791287594,0.98002229,81.637,81.61,12.25337251]
[1770791288574,0.98002229,81.635,81.607,0.96990754]
[1770791288774,0.98002229,81.629,81.6,0.96990754]
[1770791289174,0.98002229,81.629,81.598,12.25507126]
[1770791289381,0.98002229,81.619,81.583,0.96990754]
[1770791289591,0.98002229,81.619,81.554,49.04725051]
[1770791289592,0.98002229,81.599,81.561,0.96990754]
[1770791289796,0.98002229,81.598,81.563,0.96990754]
[1770791290383,0.98002229,81.589,81.563,0.96990754]
[1770791291479,12.25507017,81.599,81.563,0.96990754]
[1770791291480,0.98002229,81.596,81.563,0.96990754]
[1770791291891,0.98002229,81.596,81.565,0.96990754]
[1770791292292,0.98002229,81.594,81.565,0.96990754]
[1770791292496,0.98002229,81.579,81.544,0.96990754]
[1770791292899,0.98002229,81.579,81.549,12.26252643]
[1770791293280,42.8947852,81.595,81.532,1.01350297]
[1770791293281,12.38197081,81.57,81.532,1.01350297]
[1770791293481,12.38197081,81.58,81.532,1.01350297]
[1770791293683,12.38197081,81.57,81.541,1.01350297]
[1770791293897,12.38197081,81.56,81.53,0.2]
[1770791294103,12.38197081,81.55,81.53,0.2]
[1770791294489,28.9,81.574,81.53,0.2]
[1770791294687,12.38197081,81.56,81.53,0.2]
[1770791294889,12.38197081,81.55,81.53,0.2]
[1770791295911,12.38197081,81.56,81.531,12.26527333]
[1770791296113,12.38197081,81.58,81.541,1.01350297]
[1770791296512,12.38197081,81.59,81.551,1.01350297]
[1770791296719,12.25655419,81.589,81.551,1.01350297]
[1770791297097,12.38197081,81.58,81.551,1.01350297]
[1770791297620,12.25655419,81.589,81.551,1.01350297]
[1770791297911,12.38197081,81.59,81.561,1.01350297]
[1770791298112,12.25655419,81.589,81.552,13.27559482]
[1770791298412,12.38197081,81.58,81.552,13.27559482]
[1770791298707,12.38197081,81.58,81.552,1.01350297]
[1770791299311,12.25655419,81.589,81.552,1.01350297]
[1770791300093,12.25562262,81.596,81.56,12.38197081]
[1770791300292,41.28197081,81.6,81.571,1.01350297]
[1770791300293,28.9,81.6,81.571,1.01350297]
[1770791300893,0.02145325,81.609,81.571,1.01350297]
[1770791301417,0.02145325,81.609,81.547,12.26285163]
[1770791301418,0.02145325,81.579,81.547,12.26285163]
[1770791301800,0.02145325,81.579,81.547,13.2763546]
[1770791302118,0.02145325,81.579,81.548,1.01350297]
[1770791302412,12.38197081,81.58,81.55,1.01350297]
[1770791302618,12.25720868,81.585,81.551,1.01350297]
[1770791303605,12.38197081,81.58,81.551,1.01350297]
[1770791304528,12.38197081,81.57,81.542,12.26361582]
[1770791304813,12.38197081,81.57,81.543,1.01350297]
[1770791304994,0.03244081,81.579,81.547,1.01350297]
[1770791306412,0.03244081,81.579,81.541,12.26373813]
[1770791306721,12.38197081,81.57,81.541,1.01350297]
[1770791307803,12.38197081,81.58,81.542,1.01350297]
[1770791307997,12.38197081,81.57,81.542,1.01350297]
[1770791308323,0.03875982,81.569,81.536,12.26441693]
[1770791309126,0.03875982,81.569,81.54,12.26381858]
[1770791309503,0.03875982,81.569,81.532,1.01350297]
[1770791309702,0.0428935,81.568,81.532,1.01350297]
[1770791310124,12.25887876,81.574,81.541,1.01350297]
[1770791311426,12.2580566,81.579,81.543,1.01350297]
[1770791311804,12.2580566,81.579,81.551,1.01350297]
[1770791312702,28.96,81.58,81.551,1.01350297]
[1770791312897,28.96,81.58,81.55,12.38197081]
[1770791312898,4.62290012,81.6,81.561,1.01350297]
[1770791313119,12.25490196,81.6,81.571,1.01350297]
[1770791313503,16.87780208,81.6,81.571,1.01350297]
[1770791313709,0.05079456,81.599,81.563,13.27394699]
[1770791313909,4.67369468,81.59,81.563,1.01350297]
[1770791314114,0.05079456,81.589,81.563,1.01350297]
[1770791314321,47.51505698,81.6,81.563,1.01350297]
[1770791314617,0.05079456,81.599,81.563,1.01350297]
[1770791315536,29.0,81.601,81.565,1.01350297]
[1770791315707,12.30883795,81.605,81.571,1.01350297]
[1770791315901,12.38191902,81.6,81.571,1.01350297]
[1770791316432,12.30883795,81.605,81.571,1.01350297]
[1770791316923,12.25326829,81.611,81.581,1.01350297]
[1770791317116,41.31262782,81.616,81.581,1.01350297]
[1770791317799,41.31262782,81.616,81.583,1.01350297]
[1770791318206,41.37090386,81.616,81.583,1.01350297]
[1770791318622,41.31262782,81.616,81.583,1.01350297]
[1770791319537,12.25262782,81.616,81.591,1.01350297]
[1770791319725,12.38191902,81.62,81.591,1.01350297]
[1770791321126,12.25204915,81.619,81.591,1.01350297]
[1770791322710,12.25143435,81.624,81.591,1.01350297]
[1770791323313,12.25143435,81.624,81.593,1.01350297]
[1770791324316,12.25054821,81.629,81.593,1.01350297]
[1770791324917,12.25054821,81.629,81.595,1.01350297]
[1770791326043,0.07230967,81.628,81.595,1.01350297]
[1770791328622,12.38191902,81.62,81.595,1.01350297]
[1770791328812,0.07722373,81.619,81.585,1.01350297]
[1770791329114,12.38191902,81.61,81.585,1.01350297]
[1770791329530,0.07722373,81.613,81.585,12.2571239]
[1770791329733,12.38191902,81.61,81.586,1.01350297]
[1770791330413,12.33398691,81.609,81.586,1.01350297]
[1770791331121,12.25355046,81.609,81.586,1.01350297]
[1770791332431,12.25280252,81.614,81.587,1.02751936]
[1770791334739,12.38191902,81.62,81.591,1.02751936]
[1770791335034,4.61963434,81.62,81.591,1.02751936]
[1770791336029,0.08962674,81.619,81.591,1.02751936]
[1770791337212,0.08962674,81.619,81.58,4.61963434]
[1770791337213,0.08962674,81.619,81.593,1.02751936]
[1770791337626,0.09253056,81.609,81.575,1.02751936]
[1770791337829,4.61963434,81.61,81.575,1.02751936]
[1770791338910,0.09396762,81.609,81.58,12.25777829]
[1770791339115,0.09396762,81.609,81.581,1.02751936]
[1770791340334,0.0953893,81.616,81.583,1.02751936]
[1770791340527,4.61963434,81.61,81.578,12.25817839]
[1770791340731,0.09679514,81.609,81.579,1.02751936]
[1770791341411,0.09679514,81.609,81.583,1.02751936]
[1770791341736,0.09816632,81.619,81.583,1.02751936]
[1770791341923,4.61963434,81.61,81.583,1.02751936]
[1770791342414,0.09816632,81.614,81.571,30.64788358]
[1770791342415,0.09816632,81.614,81.585,1.02751936]
[1770791342823,0.09955582,81.618,81.585,1.02751936]
[1770791345230,0.10223969,81.609,81.585,1.02751936]
[1770791345526,0.10223969,81.609,81.578,1.02751936]
[1770791345527,0.10358252,81.609,81.578,1.02751936]
[1770791347635,12.35713298,81.609,81.578,1.02751936]
[1770791348036,12.35713298,81.609,81.581,1.02751936]
[1770791348037,12.25355046,81.609,81.581,1.02751936]
[1770791348233,12.25295606,81.613,81.581,1.02751936]
[1770791348420,12.35913125,81.613,81.581,1.02751936]
[1770791348626,4.62009163,81.61,81.581,1.02751936]
[1770791348936,0.10745482,81.612,81.581,1.02751936]
[1770791350045,12.25039813,81.63,81.59,4.62009163]
[1770791350243,0.10870488,81.629,81.601,1.02751936]
[1770791352216,0.10870488,81.629,81.595,1.02751936]
[1770791353424,0.10870488,81.629,81.599,1.02751936]
[1770791353923,0.10870488,81.629,81.601,1.02751936]
[1770791354540,12.36328242,81.636,81.601,1.02751936]
[1770791354738,12.24964489,81.636,81.611,1.02751936]
[1770791355028,4.62009163,81.64,81.603,1.02751936]
[1770791355222,0.11485355,81.639,81.6,4.62009163]
[1770791355422,4.62009163,81.62,81.589,1.02751936]
[1770791355930,0.11603577,81.619,81.589,1.02751936]
[1770791356131,0.11603577,81.619,81.592,12.25597542]
[1770791356842,0.11603577,81.619,81.592,13.28349478]
[1770791357047,0.1172094,81.618,81.592,12.25597542]
[1770791357254,0.1172094,81.639,81.601,1.02751936]
[1770791357427,0.1172094,81.629,81.601,1.02751936]
[1770791357747,0.11836788,81.619,81.593,1.02751936]
[1770791357939,0.11836788,81.625,81.593,1.02751936]
[1770791358560,0.11836788,81.625,81.595,1.02751936]
[1770791358850,12.25054821,81.629,81.595,1.02751936]
[1770791359044,0.11951458,81.631,81.595,1.02751936]
[1770791359427,0.11951458,81.629,81.595,1.02751936]
[1770791360743,0.12286738,81.628,81.597,1.03671555]
[1770791360943,0.12286738,81.619,81.584,1.03671555]
[1770791361532,12.25054821,81.629,81.596,1.03671555]
[1770791361744,12.24919767,81.638,81.601,1.03671555]
[1770791362325,12.28717728,81.65,81.595,42.89472317]
[1770791362526,1.07548749,81.655,81.62,4.62009163]
[1770791362753,1.07548749,81.655,81.621,12.25174893]
[1770791363150,1.07548749,81.662,81.63,4.62009163]
[1770791363351,1.07548749,81.662,81.621,12.25174893]
[1770791363584,1.07548749,81.662,81.63,4.62009163]
[1770791363759,1.07548749,81.662,81.619,30.63004214]
[1770791363760,1.07548749,81.649,81.573,58.40241845]
[1770791363967,1.07548749,81.639,81.6,4.62009163]
[1770791364264,1.07548749,81.646,81.61,4.62009163]
[1770791364465,1.07548749,81.629,81.591,38.96]
[1770791364629,1.07548749,81.629,81.542,49.05394081]
[1770791364630,1.07548749,81.619,81.58,16.87789572]
[1770791364836,1.07548749,81.617,81.59,4.62009163]
[1770791365334,1.07548749,81.617,81.58,47.52266159]
[1770791365539,1.07548749,81.617,81.581,0.02082857]
[1770791366064,1.07548749,81.617,81.59,4.62009163]
[1770791366433,1.07548749,81.625,81.591,0.02082857]
[1770791366839,1.07548749,81.625,81.592,0.02485083]
[1770791369464,12.25026934,81.631,81.592,0.02485083]
[1770791369664,1.07548749,81.63,81.592,0.02485083]
[1770791370362,1.07548749,81.629,81.592,0.02485083]
[1770791371855,1.07548749,81.619,81.583,38.96]
[1770791372060,1.07548749,81.609,81.583,38.96]
[1770791372257,1.07548749,81.609,81.582,12.25759811]
[1770791372766,1.07548749,81.609,81.583,0.0480386]
[1770791372967,1.07548749,81.609,81.585,12.3050464]
[1770791373163,1.07548749,81.609,81.585,0.0480386]
[1770791373754,1.07548749,81.609,81.577,0.05174859]
[1770791373755,12.25370061,81.608,81.577,0.05174859]
[1770791374062,1.07548749,81.609,81.581,0.05174859]
[1770791374844,1.07548749,81.607,81.57,12.25938516]
[1770791375244,1.07548749,81.607,81.57,16.87947679]
[1770791375466,1.07548749,81.607,81.571,0.05541867]
[1770791375668,12.25264545,81.616,81.58,4.62009163]
[1770791375876,1.07548749,81.614,81.581,0.05904578]
[1770791378621,1.07548749,81.621,81.582,0.06965524]
[1770791379253,1.07548749,81.646,81.601,0.06965524]
[1770791379459,1.07548749,81.639,81.601,0.06965524]
[1770791379659,1.07548749,81.629,81.601,0.06965524]
[1770791380254,1.07548749,81.629,81.591,0.07309618]
[1770791380882,1.07548749,81.629,81.591,12.32934993]
[1770791381369,1.07548749,81.629,81.592,0.07651411]
[1770791381965,1.07548749,81.628,81.591,12.25625375]
[1770791382389,1.07548749,81.628,81.592,0.07989584]
[1770791383302,1.07548749,81.626,81.592,0.07989584]
[1770791386991,1.07548749,81.624,81.592,0.07989584]
[1770791391383,1.07548749,81.624,81.584,0.11163626]
[1770791391893,1.07548749,81.622,81.584,0.11163626]
[1770791392499,1.07548749,81.622,81.591,0.11460186]
[1770791393092,1.07548749,81.64,81.592,0.11754459]
[1770791393288,1.07548749,81.64,81.591,42.89688813]
[1770791393289,1.07548749,81.639,81.593,0.11754459]
[1770791394195,1.07548749,81.645,81.611,0.12045894]
[1770791394490,163.9,81.684,81.568,49.03871742]
[1770791394491,1.07548749,81.629,81.568,49.03871742]
[1770791394684,1.07548749,81.629,81.565,49.0404808]
[1770791394685,1.07548749,81.609,81.569,0.12333694]
[1770791394887,1.07548749,81.609,81.547,0.12333694]
[1770791395087,1.07548749,81.609,81.532,1.22651228]
[1770791395088,1.07548749,81.585,81.552,0.12333694]
[1770791395287,1.07548749,81.585,81.535,0.12333694]
[1770791395510,1.07548749,81.583,81.541,0.12333694]
[1770791395691,1.07548749,81.615,81.561,0.1261849]
[1770791395891,1.07548749,81.609,81.57,4.62009163]
[1770791396202,1.07548749,81.599,81.561,0.1261849]
[1770791396714,1.07548749,81.599,81.551,0.12902028]
[1770791397009,1.07548749,81.599,81.56,4.62009163]
[1770791397201,1.07548749,81.599,81.56,4.74911191]
[1770791397503,1.07548749,81.599,81.56,4.62009163]
[1770791397694,1.07548749,81.597,81.56,4.62009163]
[1770791397889,1.07548749,81.597,81.557,0.13180544]
[1770791398290,1.07548749,81.597,81.561,0.13180544]
[1770791398690,1.07548749,81.597,81.551,42.91792865]
[1770791398907,1.07548749,81.589,81.551,42.91792865]
[1770791399208,1.07548749,81.589,81.551,43.05251027]
[1770791400410,1.07548749,81.589,81.552,0.13730884]
[1770791400910,1.07548749,81.587,81.551,12.26226533]
[1770791401410,90.26031543,81.619,81.551,12.26226533]
[1770791401411,1.07548749,81.639,81.581,0.14000371]
[1770791401611,1.07548749,81.639,81.554,5.13032502]
[1770791401612,4.62009163,81.6,81.553,0.14265846]
[1770791401803,4.62009163,81.6,81.551,42.91792865]
[1770791401804,4.62009163,81.58,81.551,12.26226533]
[1770791402311,4.62009163,81.57,81.53,0.2]
[1770791402518,4.62009163,81.57,81.531,12.26527333]
[1770791403293,4.62009163,81.57,81.531,42.92845665]
[1770791403515,4.62009163,81.57,81.531,43.07375032]
[1770791403814,12.24919767,81.638,81.55,4.62009163]
[1770791403995,4.62009163,81.62,81.58,4.62009163]
[1770791404193,4.62009163,81.61,81.571,0.14788227]
[1770791404801,4.62009163,81.61,81.571,12.40714107]
[1770791405610,4.62009163,81.61,81.569,30.64871064]
[1770791405611,1.07548749,81.589,81.552,0.15299698]
[1770791405910,1.07548749,81.599,81.561,0.15299698]
[1770791406095,1.07548749,81.589,81.551,39.06]
[1770791406302,1.07548749,81.589,81.562,12.26055943]
[1770791406499,1.07548749,81.579,81.536,0.15549941]
[1770791406692,4.62009163,81.6,81.537,12.26437077]
[1770791406693,1.07548749,81.569,81.537,12.26437077]
[1770791407196,1.07548749,81.559,81.532,12.26511076]
[1770791407395,1.07548749,81.559,81.53,0.2]
[1770791407396,1.07548749,81.549,81.53,0.2]
[1770791407995,5.13032502,81.589,81.535,12.26467161]
[1770791407996,4.62514578,81.56,81.535,12.26467161]
[1770791408202,1.07548749,81.572,81.54,4.62514578]
[1770791408635,1.07548749,81.569,81.535,12.42265515]
[1770791408797,5.13032502,81.599,81.551,12.26226533]
[1770791408798,1.07548749,81.577,81.551,12.26226533]
[1770791408998,5.13032502,81.609,81.543,12.26339019]
[1770791408999,1.07548749,81.575,81.543,12.26339019]
[1770791409214,1.07548749,81.569,81.551,12.26226533]
[1770791409416,1.07548749,81.579,81.551,12.26226533]
[1770791410820,1.07548749,81.579,81.53,0.2]
[1770791410821,12.25820686,81.578,81.53,0.2]
[1770791411007,1.07548749,81.558,81.53,0.2]
[1770791411523,1.07548749,81.549,81.53,0.2]
[1770791411825,1.07548749,81.549,81.531,12.26527333]
[1770791412009,4.62514578,81.58,81.541,1.11605991]
[1770791412604,4.62514578,81.59,81.551,1.11605991]
[1770791412823,4.62514578,81.59,81.552,12.26211496]
[1770791413026,4.62514578,81.59,81.552,13.37817487]
[1770791413924,1.02205783,81.589,81.552,13.37817487]
[1770791414227,1.02205783,81.589,81.553,1.11605991]
[1770791414410,1.02205783,81.6,81.571,1.11605991]
[1770791414614,1.02205783,81.609,81.571,1.11605991]
[1770791414822,4.62514578,81.6,81.571,1.11605991]
[1770791415139,1.02205783,81.599,81.572,12.25910851]
[1770791416132,1.02205783,81.579,81.553,39.04]
[1770791416719,1.02205783,81.587,81.565,12.26015642]
[1770791417116,1.02205783,81.587,81.556,13.37757347]
[1770791418514,1.02205783,81.587,81.556,12.26151356]
[1770791418713,1.02205783,81.587,81.557,1.11605991]
[1770791419836,1.02205783,81.587,81.558,12.26121287]
[1770791420215,1.11279457,81.586,81.558,12.26121287]
[1770791420420,1.11279457,81.569,81.55,12.26234569]
[1770791420922,1.11279457,81.569,81.537,1.14011135]
[1770791421130,1.11279457,81.569,81.531,30.66290961]
[1770791421528,42.899127,81.587,81.531,12.26525802]
[1770791421529,1.11279457,81.559,81.531,12.26525802]
[1770791422438,12.38251079,81.56,81.53,0.2]
[1770791422439,1.11279457,81.557,81.53,0.2]
[1770791422624,1.11279457,81.549,81.521,12.26673069]
[1770791423619,1.11279457,81.547,81.52,0.2]
[1770791423824,12.38251079,81.54,81.52,0.2]
[1770791424035,12.38251079,81.54,81.52,12.46689494]
[1770791424241,1.11279457,81.547,81.52,12.46689494]
[1770791426230,1.14617889,81.556,81.521,1.07059563]
[1770791427441,1.14617889,81.549,81.522,39.18]
[1770791428227,12.38251079,81.55,81.52,12.46689494]
[1770791428228,1.14617889,81.547,81.52,12.46689494]
[1770791428953,1.14617889,81.547,81.52,13.53749057]
[1770791430036,1.14617889,81.547,81.52,12.46689494]
[1770791430945,1.14617889,81.539,81.52,0.2]
[1770791431730,1.14617889,81.539,81.521,12.26677788]
[1770791432145,1.14617889,81.547,81.521,12.26677788]
[1770791434248,1.14617889,81.539,81.52,0.2]
[1770791434434,1.14617889,81.529,81.502,12.26961181]
[1770791435144,1.14617889,81.529,81.501,12.2697881]
[1770791435449,1.14617889,81.538,81.502,1.07059563]
[1770791435640,12.26308225,81.546,81.511,1.07059563]
[1770791435847,1.14617889,81.545,81.511,1.07059563]
[1770791437248,1.14617889,81.545,81.513,1.07059563]
[1770791438749,1.14617889,81.544,81.513,1.07059563]
[1770791439351,1.14617889,81.544,81.514,13.33842692]
[1770791439860,1.14617889,81.539,81.508,12.26869984]
[1770791440232,1.14617889,81.539,81.511,12.26814996]
[1770791440675,1.14617889,81.539,81.505,12.26903986]
[1770791440955,1.14617889,81.529,81.503,39.26]
[1770791441357,13.41180308,81.529,81.503,39.26]
[1770791441559,1.14617889,81.528,81.505,1.07059563]
[1770791441756,1.14617889,81.549,81.511,1.07059563]
[1770791442932,1.14617889,81.569,81.531,1.07059563]
[1770791443256,1.14617889,81.569,81.532,1.07059563]
[1770791443442,1.14617889,81.569,81.535,1.07059563]
[1770791443950,1.14617889,81.567,81.535,1.07059563]
[1770791444334,1.14617889,81.559,81.534,12.26482203]
[1770791445653,1.14617889,81.559,81.525,39.34]
[1770791445654,1.14617889,81.559,81.53,1.07059563]
[1770791447548,1.14617889,81.572,81.533,1.07059563]
[1770791447859,1.14617889,81.572,81.541,1.07059563]
[1770791448246,1.14617889,81.569,81.541,1.07059563]
[1770791448452,12.38251079,81.56,81.533,39.38]
[1770791448762,1.14617889,81.559,81.533,39.38]
[1770791448961,1.14617889,81.549,81.519,12.26696689]
[1770791449559,1.14617889,81.539,81.515,39.4]
[1770791449860,1.14617889,81.53,81.503,1.07059563]
[1770791450444,13.52868968,81.53,81.503,1.07059563]
[1770791450846,13.55803843,81.53,81.503,1.07059563]
[1770791452365,13.55803843,81.53,81.504,12.26933647]
[1770791452861,1.17552764,81.519,81.5,0.2]
[1770791453064,12.38251079,81.52,81.5,0.2]
[1770791453961,13.55803843,81.52,81.5,0.2]
[1770791454268,1.17552764,81.519,81.5,0.2]
[1770791456262,1.17552764,81.518,81.5,0.2]
[1770791456650,12.40574768,81.51,81.5,0.2]